Cogmind - Beta 10.2 @@@ ROGUE MODE // 2020.11.22 @ 19:08:06 // Halloween2020/ForbiddenLore Player: Perseus Result: Destroyed by G-67 Veteran with Plasma Rifle Performance ------------- Evolutions (3) 1500 Regions Visited (12) 2400 Robots Destroyed (65) 325 Value Destroyed (1854) 1854 Prototype IDs (240) 4800 Alien Tech Used (0) 0 Bonus (3615) 3615 TOTAL SCORE: 14494 Bonus ------- Follower Combat Kills 28 Aligned with FarCom 300 Met Data Miner 300 Used Data Conduit 3000 Friendly Fire -13 Cogmind --------- Core Integrity 0/700 Matter 290/300 Energy 91/100 System Corruption 11% Temperature Cool (12) Movement Flying (40) Location -6/Proximity Caves Parts ------- > --- POWER (1) -------- (None) > --- PROPULSION (3) --- Cesium-ion Thruster > --- UTILITY (5) ------ (None) > --- WEAPON (4) ------- (None) > --- INVENTORY (4) ---- Cesium-ion Thruster Peak State ------------ > --- POWER ------------ Improved Deuterium Engine > --- PROPULSION ------- Titanium Leg Titanium Leg Titanium Leg > --- UTILITY ---------- Large Storage Unit Experimental Sensor Array Advanced Signal Interpreter Advanced Terrain Scanner Advanced Terrain Scan Processor > --- WEAPON ----------- EM Shotgun Arc Projector Improved EM Pulse Cannon Guided Plasma Cannon > --- INVENTORY -------- Light Angular Momentum Engine Improved Titanium Leg Improved Titanium Leg Improved Cooling System Advanced Targeting Computer Flak Gun Flak Cannon Dirty Bomb Trap Dirty Bomb Trap Dirty Bomb Trap [Rating: 52] Favorites ----------- Power Improved Deuterium Engine Engine Improved Deuterium Engine Propulsion Titanium Leg Leg Titanium Leg Flight Unit Cesium-ion Thruster Utility Advanced Terrain Scanner Device Advanced Terrain Scanner Storage Large Storage Unit Processor Advanced Terrain Scan Processor Weapon Enhanced Autogun Energy Gun Arc Projector Energy Cannon Improved EM Pulse Cannon Ballistic Gun Enhanced Autogun Ballistic Cannon Light Cannon Launcher Improved Grenade Launcher Build | -11 -10 -10 -10 -9 -8 -7 -7 -7 -7 -7 -7 -6 ------- Run | Scr Mat Min Exi Min Mat Fac Was Fac Low Low Dat Pro Slots Evolved 6 | . . . . . 4 2 . . . . . . Power . | . . . . . . . . . . . . . Propulsion 1 | . . . . . 1 . . . . . . . Utility 3 | . . . . . 2 1 . . . . . . Weapon 2 | . . . . . 1 1 . . . . . . Parts Attached 75 | 8 3 3 1 . 23 10 2 5 3 3 4 10 Power 9 | 1 2 1 . . 2 1 . . . . . 2 Engine 9 | 1 2 1 . . 2 1 . . . . . 2 Core . | . . . . . . . . . . . . . Reactor . | . . . . . . . . . . . . . Propulsion 18 | 2 . . 1 . 8 1 2 . 1 . 2 1 Treads . | . . . . . . . . . . . . . Leg 17 | 2 . . 1 . 8 1 2 . 1 . 2 . Wheel . | . . . . . . . . . . . . . Hover . | . . . . . . . . . . . . . Flight 1 | . . . . . . . . . . . . 1 Utility 21 | 3 . 2 . . 5 5 . 1 1 . 2 2 Device 10 | 2 . 1 . . 1 1 . 1 1 . 1 2 Storage 2 | . . 1 . . 1 . . . . . . . Processor 9 | 1 . . . . 3 4 . . . . 1 . Hackware . | . . . . . . . . . . . . . Protection . | . . . . . . . . . . . . . Artifact . | . . . . . . . . . . . . . Weapon 27 | 2 1 . . . 8 3 . 4 1 3 . 5 Energy Gun 6 | . . . . . 2 1 . 1 1 1 . . Energy Cannon 6 | . . . . . 1 1 . 1 . 1 . 2 Ballistic Gun 10 | 2 . . . . 5 . . 1 . 1 . 1 Ballistic Cannon 4 | . 1 . . . . 1 . . . . . 2 Launcher 1 | . . . . . . . . 1 . . . . Special Weapon . | . . . . . . . . . . . . . Impact Weapon . | . . . . . . . . . . . . . Slashing Weapon . | . . . . . . . . . . . . . Piercing Weapon . | . . . . . . . . . . . . . Special Melee Weapon . | . . . . . . . . . . . . . Unidentified Prototypes 5 | . . 1 . . 3 1 . . . . . . Parts Lost 21 | . . . . . . . 3 . . . 12 6 Power 2 | . . . . . . . . . . . 1 1 Propulsion 5 | . . . . . . . . . . . 4 1 Utility 5 | . . . . . . . . . . . 3 2 Weapon 9 | . . . . . . . 3 . . . 4 2 Highest Loss Streak 12 | . . . . . . . 3 . . . 12 5 Average Slot Usage (%) 95 | . 100 99 100 85 95 99 98 85 100 99 94 44 Engine 9 | . 14 14 14 14 9 7 7 7 7 7 6 4 Leg 24 | . 28 28 28 28 27 23 23 23 23 23 22 4 Device 11 | . 14 13 14 . 8 8 7 7 15 15 12 10 Storage 7 | . . 13 14 14 9 7 7 7 7 7 7 6 Processor 13 | . 14 . . . 14 21 23 23 15 15 16 6 Energy Gun 6 | . . . . . 4 4 . 5 11 14 13 . Energy Cannon 3 | . . . . . 3 2 6 4 7 7 6 2 Ballistic Gun 12 | . 20 14 14 14 19 22 14 1 7 6 6 1 Ballistic Cannon 3 | . 7 14 14 14 . . 6 . . . . 4 Naked Turns 4 | . . . . . . . . . . . . 4 Heaviest Build 52 | 7 11 19 19 18 34 47 47 48 49 52 46 43 Greatest Support 54 | 20 20 20 20 20 51 51 51 51 51 51 54 20 Greatest Overweight (x) 11 | . . . . . . . . . . 1 . 11 Average Overweight (x) . | . . . . . . . . . . . . 2 Largest Inventory Capacity 10 | 4 4 8 8 8 10 10 10 10 10 10 10 10 Average Capacity 8 | 4 4 7 8 8 8 10 10 10 10 10 10 9 Most Carried 10 | 4 4 7 8 8 10 10 10 10 10 10 10 4 Average Carried 7 | 2 3 5 7 8 7 9 10 9 9 10 8 . Final Capacity 10 | 4 4 8 8 8 10 10 10 10 10 10 10 4 Final Carried 10 | 3 4 7 8 8 10 10 10 10 10 10 5 1 Class Distribution -------------------- 51% | Skirmisher 38% | Mutant 6% | Scavenger-Skirmisher Dominant Class ---------------- Mutant | -10/Materials Mutant | -10/Mines Mutant | -10/Exiles Mutant | -9/Mines Scavenger-Skirmisher | -8/Materials Skirmisher | -7/Factory Skirmisher | -7/Waste Skirmisher | -7/Factory Skirmisher | -7/Lower Caves Skirmisher | -7/Lower Caves Skirmisher | -7/Data Miner Mutant | -6/Proximity Caves Resources | -11 -10 -10 -10 -9 -8 -7 -7 -7 -7 -7 -7 -6 ----------- Run | Scr Mat Min Exi Min Mat Fac Was Fac Low Low Dat Pro Matter Collected 2153 | 324 123 220 . . 448 386 . . 305 45 . 302 Remotely . | . . . . . . . . . . . . . Salvage Created 2546 | 176 269 173 . . 637 388 317 13 89 90 . 394 Parts 130 | 21 23 14 . . 26 25 1 2 5 5 . 8 Haulers Intercepted 4 | . 2 . . . 1 1 . . . . . . Recyclers Shooed . | . . . . . . . . . . . . . Parts Field Recycled . | . . . . . . . . . . . . . Retrieved Matter . | . . . . . . . . . . . . . Parts Self-Destructed 12 | . . . . . . . . . 2 4 . 6 Prevented 5 | . . . . . . . . . 1 4 . . Kills | -11 -10 -10 -10 -9 -8 -7 -7 -7 -7 -7 -7 -6 ------- Run | Scr Mat Min Exi Min Mat Fac Was Fac Low Low Dat Pro Combat Hostiles Destroyed 43 | . 5 8 . . 8 6 1 . 4 2 . 9 Guns 22 | . 4 1 . . 8 5 1 . . 1 . 2 Cannons 17 | . 1 7 . . . 1 . . . 1 . 7 AOE 4 | . . . . . . . . . 4 . . . Classes Destroyed 14 | 2 4 . . . 4 1 1 . 1 . . 1 Builder 2 | . . . . . 2 . . . . . . . Tunneler 7 | 5 . 1 . . 1 . . . . . . . Hauler 4 | . 2 . . . 1 1 . . . . . . Recycler 2 | 1 . . . . 1 . . . . . . . Minesweeper 1 | . . . . . . . . . 1 . . . Operator 1 | . . . . . 1 . . . . . . . Watcher 5 | . 2 . . . 1 1 . 1 . . . . Swarmer 16 | . 3 6 . . 1 . . . 4 1 . 1 Grunt 14 | . 2 2 . . 4 3 . . . . . 3 Brawler 3 | . . . . . . . . . . . . 3 Sentry 6 | . . . . . 2 2 . . . 1 . 1 Hunter 1 | . . . . . 1 . . . . . . . Programmer 2 | . . . . . . 1 . . . . . 1 Compactor 1 | . . . . . . . 1 . . . . . Best Kill Streak 8 | 2 3 5 . . 3 3 1 1 4 1 . 8 Combat Bots Only 8 | . 3 5 . . 3 3 1 . 4 1 . 8 Max Kills in Single Turn 3 | 1 1 2 . . 1 1 1 1 3 1 . 1 Gunslinging . | . . . . . . . . . . . . . Exploded 3 | . . . . . . . . . 3 . . . Melee . | . . . . . . . . . . . . . Uniques/NPCs Destroyed . | . . . . . . . . . . . . . Combat | -11 -10 -10 -10 -9 -8 -7 -7 -7 -7 -7 -7 -6 -------- Run | Scr Mat Min Exi Min Mat Fac Was Fac Low Low Dat Pro Damage Taken 3749 | . 260 70 . . 650 265 94 . 107 . 1441 862 Core 848 | . 33 . . . 103 27 34 . 13 . 408 230 Absorbed by Shields . | . . . . . . . . . . . . . Core Remaining (%) 89 | 100 . . . 86 81 . . . . . . . Volleys Fired 205 | 11 37 12 . . 57 19 12 2 7 7 9 32 Largest 4 | 2 2 2 . . 3 4 4 2 3 4 4 2 Hottest 197 | 40 55 55 . . 120 138 128 124 152 197 197 120 Shots Fired 466 | 22 74 24 . . 137 73 37 4 15 16 14 50 Gun 342 | 22 57 12 . . 122 62 23 2 8 9 7 18 Cannon 121 | . 17 12 . . 15 11 14 2 4 7 7 32 Launcher 3 | . . . . . . . . . 3 . . . Special . | . . . . . . . . . . . . . Kinetic 376 | 22 74 24 . . 111 57 35 . 4 3 3 43 Thermal 54 | . . . . . 26 16 2 . . 3 . 7 Explosive 3 | . . . . . . . . . 3 . . . Electromagnetic 33 | . . . . . . . . 4 8 10 11 . Robot Hit Streak 19 | 8 17 10 . . 19 12 6 1 3 3 4 10 Robot Miss Streak 6 | 1 4 4 . . 3 3 3 2 3 6 4 5 Penetration Max . | . . . . . . . . . . . . . Secondary Targets . | . . . . . . . . . . . . . Shots Hit Robots 298 | 13 44 13 . . 95 42 24 1 9 6 7 44 Core Hits 139 | 6 14 10 . . 23 19 7 1 9 8 3 39 Critical Hits 5 | . . . . . 4 . . . . . . 1 Critical Kills 2 | . . . . . 1 . . . . . . 1 Critical Parts Destroyed 3 | . . . . . 3 . . . . . . . Melee Attacks . | . . . . . . . . . . . . . Impact . | . . . . . . . . . . . . . Slashing . | . . . . . . . . . . . . . Piercing . | . . . . . . . . . . . . . Sneak Attacks . | . . . . . . . . . . . . . Combat Hostiles . | . . . . . . . . . . . . . Follow-up Attacks . | . . . . . . . . . . . . . Damage Inflicted 5988 | 162 492 279 . . 1763 791 627 113 399 208 204 950 Guns 3263 | 162 405 119 . . 1284 602 356 . 88 68 84 95 Cannons 2228 | . 87 160 . . 479 189 271 . 73 114 . 855 Explosions 497 | . . . . . . . . 113 238 26 120 . Melee . | . . . . . . . . . . . . . Ramming . | . . . . . . . . . . . . . Kinetic 4012 | 162 492 279 . . 1115 532 599 . 70 33 59 671 Thermal 1587 | . . . . . 648 259 28 113 . 140 120 279 Explosive 238 | . . . . . . . . . 238 . . . Electromagnetic 151 | . . . . . . . . . 91 35 25 . Impact . | . . . . . . . . . . . . . Slashing . | . . . . . . . . . . . . . Piercing . | . . . . . . . . . . . . . Highest Corruption 11 | . . . . . . 2 2 2 2 2 2 11 Average Corruption 2 | . . . . . . 2 2 2 2 2 2 3 Corruption Purged . | . . . . . . . . . . . . . Effects 28 | . . . . . . . 5 2 3 9 2 7 Message Errors 11 | . . . . . . . 1 1 1 3 1 4 Matter Fused 1 | . . . . . . . . . . . . 1 Heat Flow Errors 2 | . . . . . . . . . . 2 . . Energy Discharges 5 | . . . . . . . . 1 1 2 . 1 Data Loss (minor) 3 | . . . . . . . . . 1 1 1 . Data Loss (major) 1 | . . . . . . . . . . . . 1 Targeting Errors 3 | . . . . . . . 3 . . . . . Weapon Failures 2 | . . . . . . . 1 . . 1 . . Overload Shots . | . . . . . . . . . . . . . Overflow Damage 131 | . . . . . 45 . . . 47 . 23 16 Projectiles 80 | . . . . . 45 . . . 19 . . 16 Explosions 51 | . . . . . . . . . 28 . 23 . Melee . | . . . . . . . . . . . . . Knockbacks 5 | . 2 . . . . . . . . . . 3 Impact . | . . . . . . . . . . . . . Kinetic 4 | . 1 . . . . . . . . . . 3 Secondary 1 | . 1 . . . . . . . . . . . Self-Inflicted Damage 105 | . . . . . . . . . 34 . 71 . Shots 3 | . . . . . . . . . 2 . 1 . Rammed . | . . . . . . . . . . . . . Targets Rammed . | . . . . . . . . . . . . . Kicked . | . . . . . . . . . . . . . Crushed . | . . . . . . . . . . . . . Highest Temperature 382 | . 18 7 . . 382 248 148 42 180 268 39 141 Average Temperature 85 | . 11 4 . . 112 92 50 26 83 89 28 31 Received Heat Transfer 741 | . 72 18 . . 198 72 . . . . 180 201 Effects 2 | . . . . . 2 . . . . . . . Interference 1 | . . . . . 1 . . . . . . . Damage (minor) 1 | . . . . . 1 . . . . . . . Siege Activations . | . . . . . . . . . . . . . Robots Corrupted . | . . . . . . . . . . . . . Combat Hostiles . | . . . . . . . . . . . . . Parts Fried . | . . . . . . . . . . . . . Impact Corruptions . | . . . . . . . . . . . . . Robots Melted . | . . . . . . . . . . . . . Combat Hostiles . | . . . . . . . . . . . . . Parts Melted 2 | . . . . . 1 . . . . . . 1 Heat Transferred 2934 | . . . . . 1490 407 37 50 . 290 100 560 Parts Sabotaged 1 | . . . . . . . . . . . . 1 Parts Stolen . | . . . . . . . . . . . . . Parts Stripped . | . . . . . . . . . . . . . Power Chain Reactions 2 | . . . . . . . . . . 1 1 . Missiles Intercepted . | . . . . . . . . . . . . . Alert | -11 -10 -10 -10 -9 -8 -7 -7 -7 -7 -7 -7 -6 ------- Run | Scr Mat Min Exi Min Mat Fac Was Fac Low Low Dat Pro Peak Influence 199 | 30 163 166 . . 197 199 28 129 . . . . Initial 71 | . 19 30 . . . 71 27 . . . . . Average 80 | 14 67 110 . . 96 78 26 79 . . . . Maximum Alert Level . | . . . . . . . . . . . . . Low Security (%) 100 | 100 100 100 . 100 100 100 100 100 . . . . Level 1 . | . . . . . . . . . . . . . Level 2 . | . . . . . . . . . . . . . Level 3 . | . . . . . . . . . . . . . Level 4 . | . . . . . . . . . . . . . Level 5 . | . . . . . . . . . . . . . High Security . | . . . . . . . . . . . . . Max Security . | . . . . . . . . . . . . . Squads Dispatched 5 | . 1 . . . 1 2 . . . . . 1 Investigation 1 | . . . . . . 1 . . . . . . Extermination 1 | . . . . . . 1 . . . . . . Reinforcement 2 | . 1 . . . 1 . . . . . . . Assault 1 | . . . . . . . . . . . . 1 Garrison . | . . . . . . . . . . . . . Intercept . | . . . . . . . . . . . . . Construction Impeded 1 | . . . . . 1 . . . . . . . Haulers Reinforced . | . . . . . . . . . . . . . Stealth | -11 -10 -10 -10 -9 -8 -7 -7 -7 -7 -7 -7 -6 --------- Run | Scr Mat Min Exi Min Mat Fac Was Fac Low Low Dat Pro Distress Signals 1 | . 1 . . . . . . . . . . . Communications Jammed . | . . . . . . . . . . . . . Distress Signals . | . . . . . . . . . . . . . Times Spotted 75 | . 9 11 . . 13 8 6 1 4 3 4 16 Peak Tracking Total 9 | . 3 6 . . 5 4 5 1 4 3 4 9 Tactical Retreats 6 | . 1 . . . 2 . . . . 1 . 2 Traps | -11 -10 -10 -10 -9 -8 -7 -7 -7 -7 -7 -7 -6 ------- Run | Scr Mat Min Exi Min Mat Fac Was Fac Low Low Dat Pro Traps Triggered 4 | . . . . . . 3 . 1 . . . . Indirectly . | . . . . . . . . . . . . . Trap Hack Attempts . | . . . . . . . . . . . . . Triggered . | . . . . . . . . . . . . . Disarmed . | . . . . . . . . . . . . . Reprogrammed . | . . . . . . . . . . . . . Reused 2 | . . . . . . . . . . . 2 . Traps Extracted . | . . . . . . . . . . . . . Installed 3 | . . . . . . . . . . . 3 . Triggered 2 | . . . . . . . . . . 2 . . Machines | -11 -10 -10 -10 -9 -8 -7 -7 -7 -7 -7 -7 -6 ---------- Run | Scr Mat Min Exi Min Mat Fac Was Fac Low Low Dat Pro Machines Disabled 6 | . 1 . . . . . . 5 . . . . Max in Single Turn 5 | . 1 . . . . . . 5 . . . . Garrison Access 1 | . . . . . . . . 1 . . . . Machines Sabotaged . | . . . . . . . . . . . . . Garrisons Compromised . | . . . . . . . . . . . . . Overloaded Fab Kills . | . . . . . . . . . . . . . Fab Network Shutdowns . | . . . . . . . . . . . . . Hacking | -11 -10 -10 -10 -9 -8 -7 -7 -7 -7 -7 -7 -6 --------- Run | Scr Mat Min Exi Min Mat Fac Was Fac Low Low Dat Pro Machines Accessed 23 | . 5 . 2 . 3 7 . 3 . . 3 . Terminals 10 | . 5 . . . 2 2 . 1 . . . . Fabricators 3 | . . . . . . 3 . . . . . . Repair Stations 1 | . . . . . 1 . . . . . . . Recycling Units 2 | . . . . . . 2 . . . . . . Scanalyzers 1 | . . . . . . . . 1 . . . . Garrison Access 1 | . . . . . . . . 1 . . . . Total Hacks 94 | . 16 . 21 . 11 23 . 3 . . 20 . Successful 64 | . 5 . 21 . 7 10 . 1 . . 20 . Failed 29 | . 10 . . . 4 13 . 2 . . . . Catastrophic 7 | . 3 . . . 2 1 . 1 . . . . Database Lockouts 1 | . 1 . . . . . . . . . . . Manual 44 | . 12 . 1 . 10 20 . 1 . . . . Terminals 30 | . 16 . . . 9 4 . 1 . . . . Fabricators 9 | . . . . . . 9 . . . . . . Repair Stations 2 | . . . . . 2 . . . . . . . Recycling Units 10 | . . . . . . 10 . . . . . . Scanalyzers 1 | . . . . . . . . 1 . . . . Garrison Access 1 | . . . . . . . . 1 . . . . Terminal Hacks 47 | . 3 . 21 . 3 . . . . . 20 . Record 26 | . . . 20 . . . . . . . 6 . Part Schematic 7 | . . . . . 1 . . . . . 6 . Robot Schematic 5 | . . . . . . . . . . . 5 . Robot Analysis 1 | . 1 . . . . . . . . . . . Prototype ID Bank 4 | . . . . . 1 . . . . . 3 . Branch Access Points 2 | . 1 . . . 1 . . . . . . . Locate Traps 1 | . 1 . . . . . . . . . . . EX-Prototype ID Bank 1 | . . . 1 . . . . . . . . . Fabricator Hacks 1 | . . . . . . 1 . . . . . . Build 1 | . . . . . . 1 . . . . . . Repair Station Hacks 2 | . . . . . 2 . . . . . . . Scan Component 1 | . . . . . 1 . . . . . . . Repair 1 | . . . . . 1 . . . . . . . Recycling Unit Hacks 1 | . . . . . . 1 . . . . . . Retrieve Matter 1 | . . . . . . 1 . . . . . . Scanalyzer . | . . . . . . . . . . . . . Garrison Access Hacks 1 | . . . . . . . . 1 . . . . Seal Access 1 | . . . . . . . . 1 . . . . Unauthorized Hacks 12 | . 2 . . . 2 8 . . . . . . Terminals 5 | . 2 . . . 2 1 . . . . . . Botnet 5 | . 2 . . . 2 1 . . . . . . Fabricators 2 | . . . . . . 2 . . . . . . Report 1 | . . . . . . 1 . . . . . . Siphon 1 | . . . . . . 1 . . . . . . Repair Stations . | . . . . . . . . . . . . . Recycling Units 5 | . . . . . . 5 . . . . . . Monitor 1 | . . . . . . 1 . . . . . . Reject 1 | . . . . . . 1 . . . . . . Recyclers 2 | . . . . . . 2 . . . . . . Mask 1 | . . . . . . 1 . . . . . . Scanalyzers . | . . . . . . . . . . . . . Garrison Access . | . . . . . . . . . . . . . Data Cores Recovered 1 | . . . . . 1 . . . . . . . Used 1 | . . . . . 1 . . . . . . . Hacking Detections 17 | . 5 . . . 3 7 . 2 . . . . Full Trace Events . | . . . . . . . . . . . . . Feedback Events . | . . . . . . . . . . . . . Feedback Blocked . | . . . . . . . . . . . . . Robot Schematics Acquired 5 | . . . . . . . . . . . 5 . Robots Built . | . . . . . . . . . . . . . Matter . | . . . . . . . . . . . . . Time . | . . . . . . . . . . . . . Total Robot Build Rating . | . . . . . . . . . . . . . Part Schematics Acquired 7 | . . . . . 1 . . . . . 6 . Parts Built 1 | . . . . . . 1 . . . . . . Matter 190 | . . . . . . 190 . . . . . . Time 95 | . . . . . . 95 . . . . . . Total Part Build Rating 5 | . . . . . . 5 . . . . . . Parts Repaired 1 | . . . . . 1 . . . . . . . Time 40 | . . . . . 40 . . . . . . . Parts Recycled . | . . . . . . . . . . . . . Recycled Matter . | . . . . . . . . . . . . . Retrieved Matter . | . . . . . . . . . . . . . Retrieved Components . | . . . . . . . . . . . . . Parts Scanalyzed . | . . . . . . . . . . . . . Part Schematics Acquired . | . . . . . . . . . . . . . Parts Damaged . | . . . . . . . . . . . . . Bothacking | -11 -10 -10 -10 -9 -8 -7 -7 -7 -7 -7 -7 -6 ------------ Run | Scr Mat Min Exi Min Mat Fac Was Fac Low Low Dat Pro Used RIF Installer . | . . . . . . . . . . . . . Robots Hacked . | . . . . . . . . . . . . . Non-combat . | . . . . . . . . . . . . . Combat . | . . . . . . . . . . . . . Robot Hacks Applied . | . . . . . . . . . . . . . Relay Couplers Released . | . . . . . . . . . . . . . Robots Rewired . | . . . . . . . . . . . . . Allies Hacked . | . . . . . . . . . . . . . Hacks Repelled . | . . . . . . . . . . . . . Allies | -11 -10 -10 -10 -9 -8 -7 -7 -7 -7 -7 -7 -6 -------- Run | Scr Mat Min Exi Min Mat Fac Was Fac Low Low Dat Pro Total Allies 3 | . . 3 . . . . . . . . . . Largest Group 3 | . . 3 1 1 1 . . . . . . . Highest-Rated Group 40 | . . 40 16 16 16 . . . . . . . Highest-Rated Ally 16 | . . 16 16 16 16 . . . . . . . Total Orders . | . . . . . . . . . . . . . Ally Attacks 17 | . . 9 . . 8 . . . . . . . Total Damage 191 | . . 91 . . 100 . . . . . . . Kills 5 | . . 3 . . 2 . . . . . . . Allies Corrupted . | . . . . . . . . . . . . . Allies Melted . | . . . . . . . . . . . . . Intel | -11 -10 -10 -10 -9 -8 -7 -7 -7 -7 -7 -7 -6 ------- Run | Scr Mat Min Exi Min Mat Fac Was Fac Low Low Dat Pro Robot Analysis Total 116 | . 1 . . . . . . . . . 115 . Derelict Logs Recovered 3 | . . 1 . . . . . . 1 1 . . Drone Launches . | . . . . . . . . . . . . . Drone Recoveries . | . . . . . . . . . . . . . Exploration | -11 -10 -10 -10 -9 -8 -7 -7 -7 -7 -7 -7 -6 ------------- Run | Scr Mat Min Exi Min Mat Fac Was Fac Low Low Dat Pro Turns Passed 6080 | 136 555 663 382 28 679 878 191 304 711 1019 284 250 Spaces Moved 4087 | 77 335 500 314 24 343 595 122 222 526 761 196 72 Core 22 | 8 . . . . . . . . . . . 14 Treads . | . . . . . . . . . . . . . Legs 4056 | 69 335 500 314 24 343 595 122 222 526 761 196 49 Wheels . | . . . . . . . . . . . . . Hover . | . . . . . . . . . . . . . Flight 9 | . . . . . . . . . . . . 9 Fastest Speed 40 | 50 120 120 120 120 120 130 130 130 130 130 130 40 Average Speed 127 | 112 120 120 120 120 120 130 130 130 130 130 130 201 Slowest Speed 600 | 120 120 120 120 120 130 130 130 130 130 160 130 600 Overloaded Moves . | . . . . . . . . . . . . . Propulsion Burnouts . | . . . . . . . . . . . . . Robots Hopped 2 | . . . . . . . . . . . . 2 Cave-ins Triggered . | . . . . . . . . . . . . . Exploration Rate (%) 47 | 5 65 83 76 14 28 20 80 10 67 84 81 4 Regions Visited 12 Branch Regions 7 Pre-discovered Areas 31 | . . 1 1 . . . . . . . 29 . Known Exits Taken 5 | . 1 . . . 1 . . 1 1 1 . . Unknown Exits Taken 5 | 1 . 1 1 1 . . . . . . 1 . Scrap Searched 8 | . . 3 . . . . . . 2 3 . . Spaces Dug 10 | . . . . . . . . . 10 . . . Terrain Destroyed 87 | . . . . . 1 . 1 42 22 1 20 . Melee . | . . . . . . . . . . . . . Projectile 2 | . . . . . 1 . 1 . . . . . AOE 85 | . . . . . . . . 42 22 1 20 . Terrain Rammed . | . . . . . . . . . . . . . Walls Destroyed . | . . . . . . . . . . . . . Machines Disabled . | . . . . . . . . . . . . . Actions | -11 -10 -10 -10 -9 -8 -7 -7 -7 -7 -7 -7 -6 --------- Run | Scr Mat Min Exi Min Mat Fac Was Fac Low Low Dat Pro Total 4660 | 106 420 539 319 23 550 678 135 232 543 771 214 130 Wait 185 | . 35 16 2 . 92 28 . 2 . . . 10 Move 4073 | 76 334 499 313 23 342 595 121 221 525 760 195 69 Hop 1 | . . . . . . . . . . . . 1 Pick Up 55 | 10 5 6 1 . 15 8 . 2 4 . . 4 Fast Attach 19 | 1 . . . . 5 7 2 3 . 1 . . Attach 28 | 6 . 1 . . 5 1 . 2 2 . 2 9 Detach 2 | . . . 1 . . . . . . . . 1 Swap 28 | 1 3 2 1 . 13 2 . . 1 2 2 1 Drop 56 | 1 6 3 1 . 21 13 . . 4 1 3 3 Fire 205 | 11 37 12 . . 57 19 12 2 7 7 9 32 Melee . | . . . . . . . . . . . . . Ram . | . . . . . . . . . . . . . Kick . | . . . . . . . . . . . . . Crush . | . . . . . . . . . . . . . Escape Stasis 5 | . . . . . . 5 . . . . . . Rewire . | . . . . . . . . . . . . . Trap 3 | . . . . . . . . . . . 3 . Miscellaneous . | . . . . . . . . . . . . . Route ------- -11/Scrapyard -10/Materials (discovered 2 exits: [*Mat] / *Min) -10/Mines (discovered 2 exits: [*Mat] / *Exi) -10/Exiles -9/Mines -8/Materials -7/Factory -7/Waste -7/Factory -7/Lower Caves -7/Lower Caves (discovered 2 exits: *Fac / *Dat) -7/Data Miner -6/Proximity Caves History --------- Turn | Location | Event 15 | -11/Scrapyard | Discovered new exit (range 15) 137 | -11/Scrapyard | Entered Materials 306 | -10/Materials | Build established: Mutant 550 | -10/Materials | Discovered new exit (range 13) 669 | -10/Materials | Discovered new exit (range 16) 670 | -10/Materials | Central database locked down 670 | -10/Materials | Identified exit to Mines 692 | -10/Materials | Entered Mines 715 | -10/Mines | Found a damaged Exp. Sensor Array with a note attached 720 | -10/Mines | Found Prototype Device 721 | -10/Mines | Identified Exp. Sensor Array 765 | -10/Mines | Discovered new exit (range 6) 805 | -10/Mines | Assisted by bots powering up and referring to "LRC-V3" 954 | -10/Mines | Received a Rocket Launcher from a helpful Derelict 1242 | -10/Mines | Learned location of Zion (-6) 1347 | -10/Mines | Deemed a non-threat by the Exiles lab entrance 1347 | -10/Mines | Discovered new exit (range 5) 1355 | -10/Mines | Entered Exiles 1355 | -10/Exiles | Accompanied by 1 ally 1385 | -10/Exiles | Met 8R-AWN 1405 | -10/Exiles | Met EX-HEX 1442 | -10/Exiles | Met EX-BIN 1456 | -10/Exiles | Aligned with FarCom system 1457 | -10/Exiles | Given EX-Vault access code 1485 | -10/Exiles | Opened EX-Vault 1492 | -10/Exiles | Found Gui. Plasma Cannon 1518 | -10/Exiles | Warned to stay clear of 0b10 Research branches 1552 | -10/Exiles | Met EX-DEC 1639 | -10/Exiles | Visited The Gauntlet 1722 | -10/Exiles | Discovered new exit (range 10) 1737 | -10/Exiles | Left Exiles lab with Gui. Plasma Cannon 1737 | -10/Exiles | Entered Mines 1737 | -9/Mines | Accompanied by 1 ally 1757 | -9/Mines | Discovered new exit (range 7) 1765 | -9/Mines | Entered Materials 1765 | -8/Materials | Accompanied by 1 ally 1765 | -8/Materials | Evolved 4 slots: Propulsion x1, Utility x2, Weapon x1 1854 | -8/Materials | Repaired Exp. Sensor Array 2286 | -8/Materials | Build established: Scavenger-Skirmisher 2382 | -8/Materials | Discovered new exit (range 15) 2443 | -8/Materials | Identified exit to Factory 2444 | -8/Materials | Entered Factory 2444 | -7/Factory | Evolved 2 slots: Utility x1, Weapon x1 2696 | -7/Factory | Build established: Skirmisher 2920 | -7/Factory | Fabricated Imp. Transmission Jammer? 3150 | -7/Factory | Discovered new exit (range 9) 3161 | -7/Factory | Identified exit to Factory 3322 | -7/Factory | Sucked down chute 3322 | -7/Factory | Entered Waste 3348 | -7/Waste | Spotted C-40 Crusher 3356 | -7/Waste | Spotted C-40 Crusher 3381 | -7/Waste | Spotted C-40 Crusher 3400 | -7/Waste | Destroyed C-40 Crusher 3415 | -7/Waste | Spotted C-40 Crusher 3454 | -7/Waste | Spotted C-40 Crusher 3477 | -7/Waste | Spotted C-40 Crusher 3480 | -7/Waste | Discovered new exit (range 22) 3502 | -7/Waste | Crushed by Compactor (1 part destroyed, 1 dropped) 3505 | -7/Waste | Crushed by Compactor (1 part destroyed, 2 dropped) 3511 | -7/Waste | Identified exit to Factory 3513 | -7/Waste | Entered Factory 3536 | -7/Factory | Lost 3 parts (3w) 3764 | -7/Factory | Discovered new exit (range 17) 3806 | -7/Factory | Identified exit to Lower Caves 3817 | -7/Factory | Entered Lower Caves 3824 | -7/Lower Caves | Learned 8 Factory zone layouts 4405 | -7/Lower Caves | Discovered new exit (range 14) 4527 | -7/Lower Caves | Identified exit to Lower Caves 4528 | -7/Lower Caves | Entered another Lower Caves area 4648 | -7/Lower Caves | Discovered exit to Factory (range 6) 5008 | -7/Lower Caves | Encountered a Warlord checkpoint 5146 | -7/Lower Caves | Learned 4 Factory zone layouts 5354 | -7/Lower Caves | Discovered new exit (range 4) 5357 | -7/Lower Caves | Identified exit to Data Miner 5547 | -7/Lower Caves | Entered Data Miner 5547 | -7/Data Miner | Discovered new exit (range 6) 5596 | -7/Data Miner | Met Data Miner 5632 | -7/Data Miner | Learned location of Section 7 (-2) 5632 | -7/Data Miner | Acquired the access code to Warlord's prototype stash 5653 | -7/Data Miner | Received God Mode back door access code from Data Miner 5761 | -7/Data Miner | Interfaced with the Data Conduit 5827 | -7/Data Miner | Core integrity fell below 50% 5831 | -7/Data Miner | Entered Proximity Caves 5861 | -6/Proximity Caves | Lost 12 parts (1p4n3u4w) 5973 | -6/Proximity Caves | Attracted the attention of an 0b10 outpost 5980 | -6/Proximity Caves | Core integrity fell below 20% 6027 | -6/Proximity Caves | Lost 5 parts (1p1n1u2w) 6030 | -6/Proximity Caves | Destroyed 8 combat bots 6070 | -6/Proximity Caves | System corruption reached 10% 6081 | -6/Proximity Caves | Destroyed by G-67 Veteran with Plasma Rifle Last Messages --------------- 06011_ Acquired 68 matter. 06022_ System corrupted: Substantial component data lost. 06023_ Acquired 85 matter. 06026_ Imp. Treads fries itself beyond repair. 06027_ Adv. Heat Sink fries itself beyond repair. 06035_ Acquired 20 matter. 06059_ System corrupted: Energy discharge (-36). 06065_ C-30 ARC bursts open, deploying its payload. 06065_ G-67 Veteran unfolds itself. 06065_ B-48 Gladiator unfolds itself. 06065_ G-50 Soldier unfolds itself. 06065_ E-15 Imp unfolds itself. 06069_ Adv. Terrain Scan Processor destroyed. 06069_ System corrupted by crushing effect (+5). 06071_ Dropped Lrg. Storage Unit. 06072_ Dropped Gui. Plasma Cannon. 06072_ Dropped Lgt. Angular Momentum Engine. 06072_ Exp. Sensor Array blown off. 06072_ E-15 Imp destroyed. 06075_ Acquired Cesium-ion Thruster. Map ----- +----------------------------------------------------+ | ?????????????????????????????????????????????????? | | ?????????????????????????????????????????????????? | | ?????????????????????????????????#???#?? ???????? | | ??????????????????????????? ? ??####???????????? | | ????????????????????????? ?### ? ? ?????? | | ???????????????????? ??#####?## ## ?????? | | ??????????????? ??? ?"" ""# ##? ?? ??? | | ?????????????????? ?? #" "? ## ?? ?? | | ????????????? ???? #" "# ? ?#### ?? | | ?????????? ???????## #" "# ##? ?? | | ???????????????? ### ?### ### ### ### ? ? | | ???????????????? #### # #? #?#### ?? ? | | ????????#??? ? ##### ## ? | | ????????????? ? ?##### ? ?#### | | ????????#??#? ?? ####### ##### | | ????????#??#? ? ?###### ####? | | ???????????#? ## ? ### | | ????????????? ? ?## ? ##?# | | ?????????????? ## # ?#####? ##### | | ??????????? ?####? # # ###### ####? | | ???????##?? #####?###### # "%*]!%## ###### | | ???????#?# ?######?### #######%### ? ##### | | ???????? ?? ? ######### ####?##%#### ? ##### | | ???????? ?? ?####### #######!##### ?###### | | ????????? ?##### g##### b%##### ####?## | | ??????? ? ???####### @gg ###? ####?## | | ????????????########### ### #?#### | | ????????? ??#####??##### ## ? ###?# | | ???????????######?###### ####### ##?### | | ?????#???? ???#######?## ## ################ | | ????????? ???#?######## ### ##############?## | | ????????????##??#####?# ######################## | | ?????????????##?##?##### ###########?#?#######?## | | ????????? ???#?#?######## ###################?#### | | ?????????????#?########?#########?#########?###### | | ????????????###?####?#########?##################? | | ??????????#????##########?###?###?####?#########?? | | ????????????#?#????##?#########?################?? | | ???????????#?????#?##########?################???? | | ?????????#???#??#??##?#?#################?####???? | | ?????????????#?????###?#########?###########?????? | | ???????????????????#?########?###########????????? | | ???????????????????#???###?####?######?#?????????? | | ????????????#??????#?###?##?##?####????#?????????? | | ?????????????????????####?###??##??????#?????????? | | ?????????????????????????????????##??#???????????? | | ????????????????????????????#??#?????????????????? | | ?????????????????????????????????????????????????? | | ?????????????????????????????????????????????????? | | ?????????????????????????????????????????????????? | +----------------------------------------------------+ Best States ------------- Heat Dissipation 61 Energy Generation 18 Energy Capacity 290 Matter Stores 300 Matter Capacity 300 Sight Range 22 Robot Scan Range 30 Terrain Scan Range 20 Terrain Scan Density 210 Evasion (%) 62 Targeting Accuracy 8 Core Analysis 6 Item Schematics ----------------- Adv. Terrain Scanner | -8/Materials | Hacked Lgt. Regenerative Plating | -7/Data Miner | Free Exp. Cesium-ion Thruster | -7/Data Miner | Free Combat Drone Bay | -7/Data Miner | Free Exp. Sensor Array | -7/Data Miner | Free Triangulator | -7/Data Miner | Free Exp. ECM Suite | -7/Data Miner | Free Robot Schematics ------------------ G-50 Soldier | -7/Data Miner | Free G-67 Veteran | -7/Data Miner | Free P-70 Sage | -7/Data Miner | Free I-36 Angel | -7/Data Miner | Free S-27 Virus | -7/Data Miner | Free Fabricated ------------ Imp. Transmission Jammer | x1 | -7/Factory | Preloaded Alien Tech Used ----------------- None Achievements -------------- None Challenges ------------ None Game ------ Seed HypervelocityDecoderWeb Manual? 0 Play Time 01:15:34 Cumulative 112.1 hours Start 2020.11.22 @ 17:51:47 End 2020.11.22 @ 19:08:06 Sessions 1 Manual Loads 0 Difficulty Rogue Special Mode Halloween2020/ForbiddenLore Game No. 33 Rogue 10 Adventurer 23 Explorer 0 Win Type - Total 5 Types 5/0/0/0/0/0/0/0/0 Lore% 75 Gallery% 78 Achievement% 61 Wizard Run 0 Options --------- ASCII 0 Keyboard 0 Movement Mouse Keybinds 0 Fullscreen 1 Font 18/SmallcapsGlow Map View 76x50 Tactical HUD 1 Map Filters NONE Filters NONE Steam 1 RUN: 00dfe8af-ed41-461b-9241-461aded2c644